Cogmind - Beta 16 @@@ ROGUE MODE // 2025.11.09 @ 02:42:57 Player: Runagate Result: Destroyed by B-75 Beast with Magnetic Acceleration Cannon Performance ------------- Evolutions (5) 2500 Regions Visited (16) 3200 Robots Destroyed (256) 1280 Value Destroyed (8962) 8962 Prototype IDs (8) 160 Alien Tech Used (0) 0 Bonus (8168) 8168 TOTAL SCORE: 24270 Bonus ------- High Alert Combat Kills 763 Follower Combat Kills 3120 Entered Garrisons 600 Used RIF Installer 2500 Network Hubs Disabled 200 Built Enhanced Grunts 300 A7 Reached Mainframe 300 Met R17 at Cetus 500 Friendly Fire -115 Cogmind --------- Core Integrity 0/1000 Matter 146/300 Energy 99/100 System Corruption 4% Temperature Cool (0) Movement Core (50) Location -5/Upper Caves Parts ------- > --- POWER (1) -------- (None) > --- PROPULSION (4) --- (None) > --- UTILITY (10) ----- (None) > --- WEAPON (2) ------- (None) > --- INVENTORY (5) ---- Centrium Heavy Treads Improved Light Armor Plating Relay Coupler [Swarmer] (28) Advanced Variable Charge Gun Peak State ------------ > --- POWER ------------ Fusion Reactor > --- PROPULSION ------- Centrium Heavy Treads Centrium Heavy Treads > --- UTILITY ---------- Huge Storage Unit Core Analyzer Layered Heavy Armor Plating Centrium Medium Armor Plating Centrium Medium Armor Plating Relay Coupler [NC] Relay Coupler [Swarmer] Relay Coupler [Brawler] Relay Coupler [Hunter] > --- WEAPON ----------- Heavy Flak Cannon Remote Datajack > --- INVENTORY -------- Fusion Reactor Fusion Reactor Armored Medium Treads Centrium Heavy Treads Advanced Cooling System Energy Well Seismic Detector Improved Light Armor Plating Improved Medium Armor Plating Centrium Medium Armor Plating Remote Force Field Relay Coupler [NC] Relay Coupler [NC] Relay Coupler [Swarmer] Advanced Variable Charge Gun EM Pulse Cannon Coil Gun Coil Gun Coil Gun Heavy Machine Gun Advanced KE Penetrator Enhanced Gauss Cannon Remote Datajack Power Maul [Rating: 112] Favorites ----------- Power Improved Deuterium Engine Engine Improved Deuterium Engine Power Core Light Nuclear Core Reactor Quantum Reactor Propulsion Advanced Treads Treads Advanced Treads Leg Aluminum Leg Wheel Wheel Utility Huge Storage Unit Device Seismic Detector Storage Huge Storage Unit Processor Core Analyzer Hackware Relay Coupler [NC] Protection Improved Light Armor Plating Weapon High-powered Shotgun Energy Gun Small Laser Energy Cannon EM Pulse Cannon Ballistic Gun High-powered Shotgun Ballistic Cannon Heavy Flak Cannon Launcher Improved Grenade Launcher Special Weapon Remote Datajack Impact Weapon Great Maul Build | -11 -10 -9 -8 -8 -8 -7 -7 -7 -7 -6 -6 -6 -6 -6 -5 -5 ------- Run | Yrd Mat Mat Mat Gar Mat Fac Gar Fac Gar Fac Ext Cet Arc Hub Fac Upp Slots Evolved 10 | . . 2 2 . . 2 . . . 2 . . . . 2 . Power . | . . . . . . . . . . . . . . . . . Propulsion 2 | . . 2 . . . . . . . . . . . . . . Utility 8 | . . . 2 . . 2 . . . 2 . . . . 2 . Weapon . | . . . . . . . . . . . . . . . . . Parts Attached 231 | 9 8 53 35 14 15 4 16 1 26 14 18 8 1 . 8 1 Power 29 | 1 2 8 2 2 1 1 2 . 4 2 2 1 . . 1 . Engine 21 | 1 2 8 1 2 1 1 . . 2 1 2 . . . . . Core 6 | . . . 1 . . . 2 . 2 1 . . . . . . Reactor 2 | . . . . . . . . . . . . 1 . . 1 . Propulsion 77 | 3 1 26 16 6 5 1 . . 7 3 6 2 . . 1 . Treads 52 | 1 . 18 11 5 3 . . . 3 3 5 2 . . 1 . Leg 4 | . . . . . . . . . 4 . . . . . . . Wheel 21 | 2 1 8 5 1 2 1 . . . . 1 . . . . . Hover . | . . . . . . . . . . . . . . . . . Flight . | . . . . . . . . . . . . . . . . . Utility 71 | 3 2 8 8 4 6 1 13 . 11 5 4 2 . . 3 1 Device 9 | 2 1 3 2 . . . . . . . . . . . 1 . Storage 6 | 1 1 3 . . 1 . . . . . . . . . . . Processor 3 | . . . . . . . 1 . . . 1 . . . . 1 Hackware 25 | . . . 2 . 5 . 8 . 8 2 . . . . . . Protection 28 | . . 2 4 4 . 1 4 . 3 3 3 2 . . 2 . Artifact . | . . . . . . . . . . . . . . . . . Weapon 54 | 2 3 11 9 2 3 1 1 1 4 4 6 3 1 . 3 . Energy Gun 4 | 1 1 . . . . . . . . . . 1 . . 1 . Energy Cannon 2 | . . . . . . . 1 . 1 . . . . . . . Ballistic Gun 41 | 1 2 11 8 1 2 1 . 1 3 3 6 2 . . . . Ballistic Cannon 2 | . . . . . . . . . . . . . . . 2 . Launcher 1 | . . . 1 . . . . . . . . . . . . . Special Weapon 3 | . . . . . 1 . . . . 1 . . 1 . . . Impact Weapon 1 | . . . . 1 . . . . . . . . . . . . Slashing Weapon . | . . . . . . . . . . . . . . . . . Piercing Weapon . | . . . . . . . . . . . . . . . . . Special Melee Weapon . | . . . . . . . . . . . . . . . . . Unidentified Prototypes 7 | . . 2 1 . . . . . . . . 4 . . . . Corrupted Parts 3 | . . . . . . . . . . . 1 1 . . 1 . System Corruption 11 | . . . . . . . . . . . 2 5 . . 4 . Parts Lost 56 | . 1 5 12 2 1 . 1 . 17 10 1 1 . 1 1 3 Power 5 | . . . 1 1 . . . . 2 1 . . . . . . Propulsion 24 | . 1 3 6 1 1 . . . 8 4 . . . . . . Utility 15 | . . . 2 . . . 1 . 6 2 1 1 . . . 2 Weapon 12 | . . 2 3 . . . . . 1 3 . . . 1 1 1 Highest Loss Streak 11 | . 1 2 9 1 1 . 1 . 11 10 1 1 . 1 1 2 To Critical Strikes . | . . . . . . . . . . . . . . . . . Average Backups 22 | 6 7 22 22 22 21 23 24 25 20 24 23 24 24 23 23 17 Power 1 | . 1 2 . 1 1 1 1 1 2 2 2 2 2 2 2 1 Propulsion 4 | 3 3 8 9 6 4 5 6 6 1 2 2 1 1 1 1 1 Utility 8 | . 1 5 5 8 10 7 9 11 9 8 10 10 11 11 10 7 Weapon 6 | 1 2 5 6 5 5 7 6 6 7 9 7 7 8 8 8 5 Tool/Special . | . . . . . . . . . . . . . . . . . Unused Backups 57 | 3 1 15 6 5 . 1 5 . . . 2 3 . . 2 14 Power 7 | . . 1 . . . 1 1 . . . . 1 . . 1 2 Propulsion 12 | 3 1 5 1 . . . . . . . . 1 . . . 1 Utility 22 | . . 4 2 4 . . 3 . . . . . . . 1 8 Weapon 14 | . . 5 3 . . . 1 . . . 2 1 . . . 2 Tool/Special 2 | . . . . 1 . . . . . . . . . . . 1 Average Slot Usage (%) 93 | . 99 99 92 96 99 87 83 92 92 96 99 87 86 85 80 61 Engine 5 | . 14 11 5 6 9 7 3 . 3 3 6 1 . . . . Core 1 | . . . 3 2 . . 3 7 3 2 . . . . . . Treads 19 | . 14 25 17 22 30 15 15 15 22 3 23 14 13 13 11 8 Leg 1 | . . . . . . . . . 2 20 . . . . . . Wheel 7 | . 13 18 16 13 5 11 7 7 1 . 2 1 . . . . Device 2 | . 14 7 4 2 . 5 1 . . . . . . . 2 8 Storage 7 | . 14 11 9 9 9 7 7 7 7 6 6 6 6 6 5 3 Processor 1 | . . . . . . . . . . . 1 6 6 6 5 4 Hackware 18 | . . . 8 9 19 15 20 30 22 34 37 33 33 32 23 16 Protection 7 | . . 3 8 12 7 8 7 7 12 11 6 5 6 6 12 3 Ballistic Gun 12 | . 17 21 17 12 10 12 8 8 8 9 11 7 10 11 1 . Special Weapon 1 | . . . . . 5 1 . 5 2 . 1 . 2 1 2 . Impact Weapon 1 | . . . . 5 1 . 3 . 3 1 . . . . . . Peak Build Rating 112 | 8 10 22 36 37 40 44 47 48 48 44 55 97 99 99 112 103 Average Rating 42 | 6 8 16 29 32 35 39 44 46 40 41 49 88 97 98 108 74 On Entrance 47 | . 8 9 19 33 37 32 42 47 48 34 42 55 95 95 95 110 Avg Prop Armor Cover (%) 13 | 13 12 15 12 13 18 9 9 14 16 . 19 17 . . 6 . Naked Turns 26 | . . . . . . . . . . . . . . . . 26 Heaviest Build 138 | 12 16 97 107 107 100 114 116 97 109 111 105 119 119 119 138 132 Greatest Support 160 | 20 20 88 88 86 89 28 45 28 88 60 100 160 160 160 160 160 Greatest Overweight (x) 30 | 1 1 9 29 9 9 5 4 3 9 30 6 6 . . 1 . Average Overweight (x) 2 | . . 3 4 3 4 4 3 3 1 1 3 . . . . . Largest Inventory Capacity 25 | 8 25 25 25 25 25 25 25 25 25 25 25 25 25 25 25 25 Average Capacity 23 | 7 8 24 25 25 25 25 25 25 25 25 25 25 25 25 25 19 Most Carried 25 | 8 8 25 25 25 25 25 25 25 25 25 25 25 25 25 25 24 Average Carried 22 | 6 7 22 23 24 23 24 24 25 20 24 23 24 25 24 24 18 Final Capacity 25 | 8 8 25 25 25 25 25 25 25 25 25 25 25 25 25 25 5 Final Carried 25 | 8 8 24 24 25 25 25 25 25 25 22 25 25 25 25 24 5 Class Distribution -------------------- 35% | Botlord-Mutant 28% | Bothacker-Mutant 24% | Scavenger-Mutant 11% | Mutant Dominant Class ---------------- Mutant | -10/Materials Scavenger-Mutant | -9/Materials Scavenger-Mutant | -8/Materials Scavenger-Mutant | -8/Garrison Bothacker-Mutant | -8/Materials Bothacker-Mutant | -7/Factory Bothacker-Mutant | -7/Garrison Bothacker-Mutant | -7/Factory Bothacker-Mutant | -7/Garrison Botlord-Mutant | -6/Factory Botlord-Mutant | -6/Extension Botlord-Mutant | -6/Cetus Botlord-Mutant | -6/Archives Botlord-Mutant | -6/Hub_04(d) Botlord-Mutant | -5/Factory Botlord-Mutant | -5/Upper Caves Resources | -11 -10 -9 -8 -8 -8 -7 -7 -7 -7 -6 -6 -6 -6 -6 -5 -5 ----------- Run | Yrd Mat Mat Mat Gar Mat Fac Gar Fac Gar Fac Ext Cet Arc Hub Fac Upp Matter Collected 8826 | 371 183 1541 1349 396 690 57 705 33 914 393 877 212 95 174 760 76 Remotely . | . . . . . . . . . . . . . . . . . Salvage Created 9580 | 244 339 1838 2110 422 342 . 640 . 848 176 697 154 . 873 897 . Parts 533 | 31 12 149 120 32 9 . 14 . 36 9 33 6 . 54 28 . Haulers Intercepted 5 | . . 2 2 . . . . . . . . . . 1 . . Recyclers Shooed 12 | 1 . 3 4 . . . . . . . 2 . . 1 1 . Parts Field Recycled . | . . . . . . . . . . . . . . . . . Retrieved Matter . | . . . . . . . . . . . . . . . . . Parts Self-Destructed 5 | . . . . . . . . . . . . . . . . 5 Prevented . | . . . . . . . . . . . . . . . . . Parts Restored . | . . . . . . . . . . . . . . . . . Kills | -11 -10 -9 -8 -8 -8 -7 -7 -7 -7 -6 -6 -6 -6 -6 -5 -5 ------- Run | Yrd Mat Mat Mat Gar Mat Fac Gar Fac Gar Fac Ext Cet Arc Hub Fac Upp Combat Hostiles Destroyed 169 | . 5 38 34 22 . . 12 . 20 3 11 2 . 4 18 . Melee 4 | . . . . . . . . . 3 . . . . . 1 . Guns 136 | . 5 38 30 22 . . 8 . 11 3 11 . . 3 5 . Cannons 15 | . . . . . . . 1 . 1 . . 1 . . 12 . AOE 7 | . . . 4 . . . . . 2 . . . . 1 . . Classes Destroyed 18 | 3 3 5 2 1 . . . . 2 . . . . . 2 . Worker 28 | 2 . 15 4 . 4 . . . . . . . . 2 1 . Builder 11 | . 1 3 1 . 1 . . . . . . . . 5 . . Tunneler 12 | 9 . 2 . . . . . . . . . . . 1 . . Hauler 5 | . . 2 2 . . . . . . . . . . 1 . . Recycler 15 | 1 1 2 6 . 3 . . . . . . . . 1 1 . Mechanic 1 | . . . 1 . . . . . . . . . . . . . Operator 3 | . . 1 2 . . . . . . . . . . . . . Watcher 7 | . 1 2 1 . 1 . . . . . . . . 2 . . Swarmer 44 | . . 18 8 15 . . . . 3 . . . . . . . Saboteur 1 | . . . . . . . . . . . . . . . 1 . Grunt 69 | . 5 9 18 . . . 9 . 9 . 4 . . 1 14 . Brawler 2 | . . . . . . . . . 1 . . . . . 1 . Duelist 1 | . . 1 . . . . . . . . . . . . . . Sentry 41 | . . 10 7 5 . . 4 . 4 3 6 . . 1 1 . Demolisher 1 | . . . . . . . . . . . . . . . 1 . Hunter 2 | . . . 1 . . . . . . . . . . 1 . . Programmer 6 | . . . . 2 . . . . 2 . 1 . . 1 . . Cetus Guard 2 | . . . . . . . . . . . . 2 . . . . Enhanced Grunt 2 | . . . . . . . . . . . . . . 2 . . Butcher 1 | . . . . . . . . . . . . . . 1 . . Guerrilla 1 | . . . . . . . . . . . . . . 1 . . Infiltrator 1 | . . . . . . . . . 1 . . . . . . . Best Kill Streak 9 | 3 3 8 5 9 3 . 2 . 4 2 3 1 . 5 4 . Combat Bots Only 9 | . 3 8 5 9 . . 2 . 4 2 3 1 . 1 4 . Max Kills in Single Turn 5 | 1 1 2 4 2 1 . 1 . 1 1 1 1 . 5 1 . Gunslinging 1 | . . 1 1 1 . . . . . . . . . . . . Exploded 4 | . . . 4 . . . . . 1 . . . . 1 . . Melee 1 | . . . . . . . . . 1 . . . . . 1 . Uniques/NPCs Destroyed . | . . . . . . . . . . . . . . . . . Combat | -11 -10 -9 -8 -8 -8 -7 -7 -7 -7 -6 -6 -6 -6 -6 -5 -5 -------- Run | Yrd Mat Mat Mat Gar Mat Fac Gar Fac Gar Fac Ext Cet Arc Hub Fac Upp Hostile Shots Fired 1965 | . 36 193 222 136 25 10 169 . 343 300 188 24 5 70 115 129 Missed 591 | . 6 53 46 31 10 4 50 . 112 100 78 10 2 19 17 53 Hits 1374 | . 30 140 176 105 15 6 119 . 231 200 110 14 3 51 98 76 Melee 8 | . . 2 . . . . . . 5 . . . . . 1 . Projectile 1366 | . 30 138 176 105 15 6 119 . 226 200 110 14 3 51 97 76 Critical Strikes 51 | . 3 4 9 7 1 . 3 . 8 . 2 3 . 2 8 1 Damage Taken 17153 | . 403 1504 2602 1160 278 93 1150 . 2782 1715 890 264 104 1176 1665 1367 Core 2853 | . 111 277 434 72 30 14 86 . 333 302 92 38 26 36 132 870 Absorbed by Shields 846 | . . . . 62 . . 159 . 9 . 248 102 . . 266 . Reduced by Siege Mode 21 | . . . . . . . . . . . . . . . 21 . Regen/Repaired (Parts) 530 | . . 88 38 . 27 . . . . . . . . . 377 . Core Remaining (%) 44 | 100 55 30 . . 2 . . . 38 . . . . 41 . . Volleys Fired 849 | 27 36 199 142 48 43 5 66 1 89 23 56 17 8 27 59 3 Largest 2 | 2 2 2 2 2 2 2 2 1 2 2 2 2 2 2 2 1 Hottest 284 | 60 85 46 61 50 50 50 88 5 64 59 63 275 98 71 284 47 Shots Fired 1513 | 53 72 387 282 95 49 9 100 1 129 36 102 33 15 46 101 3 Gun 1308 | 53 72 387 281 95 21 8 71 . 111 26 96 19 13 35 20 . Cannon 118 | . . . . . . . 18 . 8 . . 14 1 . 76 1 Launcher 15 | . . . 1 . . . 1 . 2 2 1 . . 8 . . Special 72 | . . . . . 28 1 10 1 8 8 5 . 1 3 5 2 Kinetic 1333 | 27 52 387 281 95 21 8 71 . 111 26 96 18 13 35 91 1 Thermal 50 | 26 20 . . . . . . . . . . 1 . . 3 . Explosive 15 | . . . 1 . . . 1 . 2 2 1 . . 8 . . Electromagnetic 43 | . . . . . . . 18 . 8 . . 14 1 . 2 . Robot Hit Streak 23 | 11 10 11 23 9 8 2 6 3 11 10 15 8 16 7 10 4 Robot Miss Streak 8 | 4 3 7 3 6 3 4 5 . 5 4 3 2 1 8 5 . Penetration Max 2 | . . . 1 . . . . . . . 2 . 1 1 1 . Secondary Targets 14 | . 1 3 2 3 . . 2 . 1 . 2 . . . . . Max Gunslinging Chain 1 | . 1 1 1 1 . . 1 . 1 . 1 . . . . . Shots Hit Robots 1030 | 36 46 233 200 63 37 3 73 1 97 23 79 23 14 21 78 3 Core Hits 516 | 13 16 94 90 29 7 1 27 . 51 17 36 15 6 47 66 1 Critical Kills 17 | . . . 2 . 1 . . . 2 1 2 . . 4 5 . Critical Parts Destroyed 23 | . 1 1 4 2 2 . 1 . 2 . 7 2 . 1 . . Critical Strikes 48 | . 3 1 6 2 3 . 2 . 5 1 10 2 . 5 8 . Burn 2 | . 2 . . . . . . . . . . . . . . . Destroy 35 | . 1 1 6 2 1 . . . 1 1 10 2 . 5 5 . Blast 3 | . . . . . . . . . . . . . . . 3 . Corrupt 1 | . . . . . . . 1 . . . . . . . . . Smash 7 | . . . . . 2 . 1 . 4 . . . . . . . Melee Attacks 73 | . . . . 16 5 1 14 1 28 5 . 3 . . . . Impact 73 | . . . . 16 5 1 14 1 28 5 . 3 . . . . Slashing . | . . . . . . . . . . . . . . . . . Piercing . | . . . . . . . . . . . . . . . . . Sneak Attacks 7 | . . . . . 4 . . . 3 . . . . . . . Combat Hostiles . | . . . . . . . . . . . . . . . . . Follow-up Attacks . | . . . . . . . . . . . . . . . . . Damage Inflicted 21096 | 445 522 2953 3530 1334 722 59 1583 . 2243 382 1519 583 467 2626 2030 98 Guns 14837 | 445 522 2953 3285 1330 297 59 949 . 1319 366 1513 275 373 669 482 . Cannons 2345 | . . . . . . . 286 . 137 . . 308 31 . 1548 35 Explosions 2573 | . . . 238 . . . 235 . 202 . . . 63 1835 . . Melee 1108 | . . . . . 414 . 109 . 585 . . . . . . . Ramming 233 | . . . 7 4 11 . 4 . . 16 6 . . 122 . 63 Kinetic 15847 | 248 307 2953 3285 1330 297 59 949 . 1319 366 1513 275 373 669 1869 35 Thermal 682 | 197 215 . . . . . 71 . . . . . 63 . 136 . Explosive 1583 | . . . 238 . . . 164 . 202 . . . . 979 . . Electromagnetic 1643 | . . . . . . . 286 . 137 . . 308 31 856 25 . Impact 1108 | . . . . . 414 . 109 . 585 . . . . . . . Slashing . | . . . . . . . . . . . . . . . . . Piercing . | . . . . . . . . . . . . . . . . . Highest Corruption 15 | . 4 . . 1 1 1 1 1 11 . 4 9 9 15 4 4 Average Corruption 4 | . 3 . . 1 1 1 1 1 9 . 2 8 9 9 4 4 Corruption Purged . | . . . . . . . . . . . . . . . . . Corruption Blocked . | . . . . . . . . . . . . . . . . . Effects 175 | . 9 . . 4 13 1 12 2 44 . 21 20 7 30 7 5 Message Errors 37 | . 1 . . 1 2 1 2 . 11 . 4 5 . 9 . 1 Matter Fused 43 | . 3 . . 1 3 . 5 . 14 . 3 5 1 6 1 1 Heat Flow Errors 21 | . 3 . . . 2 . 2 . 1 . 4 2 2 3 1 1 Energy Discharges 25 | . . . . 1 1 . . 1 10 . 3 2 4 2 1 . Parts Rejected 1 | . . . . . . . . . . . . 1 . . . . Parts Fused 2 | . . . . . 1 . . . . . . . . . 1 . Data Loss (minor) 15 | . . . . 1 1 . 2 1 2 . 2 3 . 2 . 1 Data Loss (major) 6 | . . . . . 2 . 1 . . . 1 . . 2 . . Misfires 7 | . . . . . . . . . 2 . 1 1 . 2 1 . Alerts 9 | . 2 . . . 1 . . . 1 . 2 . . 1 1 1 Weapon Failures 9 | . . . . . . . . . 3 . 1 1 . 3 1 . Overload Shots 4 | . . . . . . . . . . . . 1 . . 3 . Overflow Damage 681 | . . . 1 . 377 . 59 . 143 . . . 18 79 4 . Projectiles 4 | . . . . . . . . . . . . . . . 4 . Explosions 78 | . . . 1 . . . . . . . . . 18 59 . . Melee 599 | . . . . . 377 . 59 . 143 . . . . 20 . . Knockbacks 42 | . . . . . 1 . 1 . . 1 . . . . 39 . Impact 3 | . . . . . 1 . 1 . . 1 . . . . . . Kinetic 38 | . . . . . . . . . . . . . . . 38 . Secondary 1 | . . . . . . . . . . . . . . . 1 . Self-Inflicted Damage 263 | . . . 36 . . . . . 75 . . . 25 127 . . Shots 6 | . . . 1 . . . . . 2 . . . 1 2 . . Rammed 25 | . . . 3 2 1 . 3 . . . 1 . . 6 . 9 Targets Rammed 28 | . . . 3 2 1 . 3 . . 3 1 . . 6 . 9 Kicked 3 | . . . . . . . . . . 3 . . . . . . Crushed . | . . . . . . . . . . . . . . . . . Highest Temperature 447 | . 300 30 90 37 266 16 304 . 245 24 262 262 244 162 447 165 Average Temperature 64 | . 121 7 17 16 103 8 66 . 68 7 47 77 79 51 106 100 Received Heat Transfer 5291 | . 279 342 1332 264 153 . 471 . 822 354 225 . 9 105 770 165 Effects 8 | . 4 . . . . . . . . . . 1 . . 3 . Shutdowns 1 | . . . . . . . . . . . . . . . 1 . Energy Bleed 1 | . 1 . . . . . . . . . . . . . . . Interference 4 | . 3 . . . . . . . . . . 1 . . . . Short Circuit 2 | . . . . . . . . . . . . . . . 2 . Siege Activations 4 | . . . . . . . . . . . . . 1 . 3 . Total Turns 48 | . . . . . . . . . . . . . 1 . 47 . Longest Duration 21 | . . . . . . . . . . . . . 1 . 21 . Martial Activations . | . . . . . . . . . . . . . . . . . Shielding Activations . | . . . . . . . . . . . . . . . . . Robots Disrupted . | . . . . . . . . . . . . . . . . . Combat Hostiles . | . . . . . . . . . . . . . . . . . Robots Corrupted 12 | . . . . . 1 . 3 . 3 . . 1 . 4 . . Combat Hostiles 7 | . . . . . . . 3 . 3 . . 1 . . . . Parts Fried 22 | . . . . . 3 . 5 . 4 . . 1 . 9 . . Impact Corruptions 19 | . . . . . 8 . 3 . 6 . . . . 2 . . Robots Melted . | . . . . . . . . . . . . . . . . . Combat Hostiles . | . . . . . . . . . . . . . . . . . Parts Melted 2 | . 2 . . . . . . . . . . . . . . . Heat Transferred 1282 | 450 632 . . . . . 50 . . . . . 50 . 100 . Parts Sabotaged . | . . . . . . . . . . . . . . . . . Parts Stolen . | . . . . . . . . . . . . . . . . . Parts Stripped . | . . . . . . . . . . . . . . . . . Power Chain Reactions 2 | . . . . . . . 1 . . . . . 1 . . . Alert | -11 -10 -9 -8 -8 -8 -7 -7 -7 -7 -6 -6 -6 -6 -6 -5 -5 ------- Run | Yrd Mat Mat Mat Gar Mat Fac Gar Fac Gar Fac Ext Cet Arc Hub Fac Upp Maximum Alert Level 3 | . . 2 2 3 2 . 2 1 3 2 2 1 . 3 2 . Low Security (%) 38 | 100 100 39 . . 22 100 48 . 2 53 78 2 100 61 . . Level 1 36 | . . 31 97 9 63 . 40 100 12 33 15 97 . 26 23 . Level 2 20 | . . 29 2 48 14 . 11 . 59 12 5 . . 6 76 . Level 3 4 | . . . . 42 . . . . 25 . . . . 5 . . Level 4 . | . . . . . . . . . . . . . . . . . Level 5 . | . . . . . . . . . . . . . . . . . High Security . | . . . . . . . . . . . . . . . . . Max Security . | . . . . . . . . . . . . . . . . . Peak Influence 973 | 15 102 634 490 973 473 120 605 334 905 474 500 350 191 744 575 . Initial 474 | . . 11 255 314 473 120 3 317 184 474 . 275 101 42 357 . Average 276 | 2 24 284 331 663 277 24 201 299 581 197 95 283 143 202 451 . Influence Increases 9151 | 60 205 1211 975 679 456 53 851 57 1021 105 1081 365 190 1106 646 90 Destroy 0b10 Robot/C 4580 | . 100 760 680 460 220 20 340 40 520 60 460 160 80 300 380 . Destroy 0b10 Robot/NC 480 | 60 15 135 85 . 75 . . . . . 25 10 . 65 10 . Destroy Leader 746 | . 32 198 156 20 50 10 20 10 30 30 64 . . 86 40 . Allied During Kill 1369 | . . . . 1 60 6 41 6 66 . 439 170 80 405 95 . Successful Hack 119 | . 27 6 7 6 . . 7 . 12 . 46 8 . . . . Disable Machine 240 | . . 15 . . 45 15 15 . . . 15 . 30 90 15 . Anti-Garrison Action 650 | . . . . 50 . . 350 . 250 . . . . . . . Destroy Structure 457 | . 1 7 17 67 6 2 63 1 53 15 17 17 . 145 46 . Lose Combat Pursuer 510 | . 30 90 30 75 . . 15 . 90 . 15 . . 15 60 90 Influence Decreases 8892 | 60 178 632 1097 190 1164 313 251 398 380 1010 589 603 323 497 853 354 Entered New Map 2999 | . . 16 351 170 500 145 2 288 80 431 . 217 153 79 373 194 Time Decay 4320 | 60 178 566 616 . 574 168 . 110 . 459 395 246 90 318 410 130 Lost Part 550 | . . 50 120 20 10 . 10 . 170 100 10 10 . 10 10 30 Lost Ally 1023 | . . . 10 . 80 . 239 . 130 20 184 130 80 90 60 . Squads Dispatched 29 | . 1 3 4 . 3 1 . 1 . 4 4 . . 4 4 . Investigation 7 | . 1 . 2 . 2 . . . . . 2 . . . . . Extermination 5 | . . . . . . 1 . . . 2 . . . 1 1 . Reinforcement 13 | . . 3 2 . 1 . . 1 . . 2 . . 3 1 . Assault 2 | . . . . . . . . . . . . . . . 2 . Garrison 2 | . . . . . . . . . . 2 . . . . . . Intercept . | . . . . . . . . . . . . . . . . . Searches Triggered . | . . . . . . . . . . . . . . . . . Construction Impeded 4 | . . . 1 . . . . . . . 1 . . 1 1 . Haulers Reinforced 2 | . . . . . . . . . . . . . . 2 . . Active Scanning Responses . | . . . . . . . . . . . . . . . . . Cargo Convoy Interrupts . | . . . . . . . . . . . . . . . . . Alert ID Control Effect 13 | . . . . . . . . . 4 2 7 . . . . . Stealth | -11 -10 -9 -8 -8 -8 -7 -7 -7 -7 -6 -6 -6 -6 -6 -5 -5 --------- Run | Yrd Mat Mat Mat Gar Mat Fac Gar Fac Gar Fac Ext Cet Arc Hub Fac Upp Distress Signals 23 | . 2 6 1 . 6 . . . . . 2 2 . 2 2 . Communications Jammed . | . . . . . . . . . . . . . . . . . Distress Signals . | . . . . . . . . . . . . . . . . . Times Spotted 365 | . 12 59 49 28 26 2 22 1 42 11 35 10 6 15 27 20 Peak Tracking Total 12 | . 5 7 6 8 3 1 5 1 10 3 5 5 2 6 5 12 Tactical Retreats 18 | . 1 4 1 2 . . 1 . 3 . 1 . . 1 2 2 Traps | -11 -10 -9 -8 -8 -8 -7 -7 -7 -7 -6 -6 -6 -6 -6 -5 -5 ------- Run | Yrd Mat Mat Mat Gar Mat Fac Gar Fac Gar Fac Ext Cet Arc Hub Fac Upp Traps Triggered 22 | . 4 2 3 2 . . 4 . 4 . 1 . . . 2 . Indirectly . | . . . . . . . . . . . . . . . . . Trap Hack Attempts . | . . . . . . . . . . . . . . . . . Triggered . | . . . . . . . . . . . . . . . . . Disarmed . | . . . . . . . . . . . . . . . . . Reprogrammed . | . . . . . . . . . . . . . . . . . Reused . | . . . . . . . . . . . . . . . . . Traps Extracted . | . . . . . . . . . . . . . . . . . Installed . | . . . . . . . . . . . . . . . . . Triggered . | . . . . . . . . . . . . . . . . . Machines | -11 -10 -9 -8 -8 -8 -7 -7 -7 -7 -6 -6 -6 -6 -6 -5 -5 ---------- Run | Yrd Mat Mat Mat Gar Mat Fac Gar Fac Gar Fac Ext Cet Arc Hub Fac Upp Machines Disabled 29 | . . 1 . 1 3 1 5 . 3 . 5 1 2 6 1 . Max in Single Turn 3 | . . 1 . 1 1 . 1 . 1 . . 1 1 3 1 . Garrison Access 2 | . . . . . 1 . . . . 1 . . . . . . Garrison Relay 8 | . . . . 1 . . 4 . 3 . . . . . . . Network Hub 1 | . . . . . . . . . . . . . . 1 . . Machines Repaired . | . . . . . . . . . . . . . . . . . Machines Dismantled . | . . . . . . . . . . . . . . . . . Machines Sabotaged . | . . . . . . . . . . . . . . . . . Overloaded Fab Kills . | . . . . . . . . . . . . . . . . . Hacking | -11 -10 -9 -8 -8 -8 -7 -7 -7 -7 -6 -6 -6 -6 -6 -5 -5 --------- Run | Yrd Mat Mat Mat Gar Mat Fac Gar Fac Gar Fac Ext Cet Arc Hub Fac Upp Machines Accessed 45 | . 7 9 7 2 4 1 3 1 2 1 6 2 . . . . Terminals 35 | . 7 7 5 2 1 . 3 . 2 . 6 2 . . . . Fabricators . | . . . . . . . . . . . . . . . . . Repair Stations 3 | . . 1 1 . 1 . . . . . . . . . . . Recycling Units . | . . . . . . . . . . . . . . . . . Scanalyzers 2 | . . 1 . . 1 . . . . . . . . . . . Garrison Access 5 | . . . 1 . 1 1 . 1 . 1 . . . . . . Total Hacks 100 | . 21 25 15 3 6 2 6 1 3 2 14 2 . . . . Successful 53 | . 12 13 4 2 5 2 3 1 1 2 6 2 . . . . Failed 46 | . 9 11 11 1 1 . 3 . 2 . 8 . . . . . Catastrophic 8 | . 1 1 2 . 1 . . . . . 3 . . . . . Database Lockouts 1 | . . 1 . . . . . . . . . . . . . . Manual 51 | . 20 18 10 . 1 . . . . . . 2 . . . . Terminals 78 | . 21 18 10 3 1 . 6 . 3 . 14 2 . . . . Fabricators . | . . . . . . . . . . . . . . . . . Repair Stations 9 | . . 5 2 . 2 . . . . . . . . . . . Recycling Units . | . . . . . . . . . . . . . . . . . Scanalyzers 3 | . . 2 . . 1 . . . . . . . . . . . Garrison Access 10 | . . . 3 . 2 2 . 1 . 2 . . . . . . Terminal Hacks 16 | . 2 . . 2 . . 3 . 1 . 6 2 . . . . Record 1 | . . . . . . . . . . . . 1 . . . . Open Door 8 | . . . . 1 . . 1 . . . 5 1 . . . . Level Access Points 1 | . . . . . . . . . . . 1 . . . . . Branch Access Points 1 | . 1 . . . . . . . . . . . . . . . Emergency Access Points 2 | . . . . 1 . . 1 . . . . . . . . . Terminal Index 1 | . 1 . . . . . . . . . . . . . . . Garrison Registry 1 | . . . . . . . 1 . . . . . . . . . Patrol Navigation 1 | . . . . . . . . . 1 . . . . . . . Fabricator Hacks . | . . . . . . . . . . . . . . . . . Repair Station Hacks 8 | . . 4 2 . 2 . . . . . . . . . . . Scan Component 4 | . . 2 1 . 1 . . . . . . . . . . . Repair 4 | . . 2 1 . 1 . . . . . . . . . . . Recycling Unit Hacks . | . . . . . . . . . . . . . . . . . Scanalyzer 2 | . . 1 . . 1 . . . . . . . . . . . Retrieve Study 2 | . . 1 . . 1 . . . . . . . . . . . Garrison Access Hacks 8 | . . . 1 . 2 2 . 1 . 2 . . . . . . Unlock Access 3 | . . . 1 . . 1 . 1 . . . . . . . . Seal Access 2 | . . . . . 1 . . . . 1 . . . . . . Coupler Status 3 | . . . . . 1 1 . . . 1 . . . . . . Unauthorized Hacks 19 | . 10 8 1 . . . . . . . . . . . . . Terminals 19 | . 10 8 1 . . . . . . . . . . . . . Assimilate 4 | . 2 1 1 . . . . . . . . . . . . . Botnet 4 | . 2 2 . . . . . . . . . . . . . . Operators 1 | . 1 . . . . . . . . . . . . . . . Skim 10 | . 5 5 . . . . . . . . . . . . . . Fabricators . | . . . . . . . . . . . . . . . . . Repair Stations . | . . . . . . . . . . . . . . . . . Recycling Units . | . . . . . . . . . . . . . . . . . Scanalyzers . | . . . . . . . . . . . . . . . . . Garrison Access . | . . . . . . . . . . . . . . . . . Data Cores Recovered 1 | . . . 1 . . . . . . . . . . . . . Used 1 | . . . 1 . . . . . . . . . . . . . Hacking Detections 31 | . 7 6 5 2 2 1 2 1 1 . 3 1 . . . . Full Trace Events 5 | . . 1 . . 1 . 1 . . . 2 . . . . . Feedback Events . | . . . . . . . . . . . . . . . . . Feedback Blocked . | . . . . . . . . . . . . . . . . . Robot Schematics Acquired . | . . . . . . . . . . . . . . . . . Robots Built . | . . . . . . . . . . . . . . . . . Authchips . | . . . . . . . . . . . . . . . . . Time . | . . . . . . . . . . . . . . . . . Total Robot Build Rating . | . . . . . . . . . . . . . . . . . Part Schematics Acquired . | . . . . . . . . . . . . . . . . . Parts Built . | . . . . . . . . . . . . . . . . . Authchips . | . . . . . . . . . . . . . . . . . Time . | . . . . . . . . . . . . . . . . . Total Part Build Rating . | . . . . . . . . . . . . . . . . . Part Studies Acquired 1 | . . 1 . . . . . . . . . . . . . . Parts Repaired 4 | . . 2 1 . 1 . . . . . . . . . . . Time 104 | . . 52 26 . 26 . . . . . . . . . . . Parts Recycled . | . . . . . . . . . . . . . . . . . Recycled Matter . | . . . . . . . . . . . . . . . . . Retrieved Matter . | . . . . . . . . . . . . . . . . . Retrieved Components . | . . . . . . . . . . . . . . . . . Parts Scanalyzed . | . . . . . . . . . . . . . . . . . Part Schematics Acquired . | . . . . . . . . . . . . . . . . . Parts Damaged . | . . . . . . . . . . . . . . . . . Bothacking | -11 -10 -9 -8 -8 -8 -7 -7 -7 -7 -6 -6 -6 -6 -6 -5 -5 ------------ Run | Yrd Mat Mat Mat Gar Mat Fac Gar Fac Gar Fac Ext Cet Arc Hub Fac Upp Used RIF Installer 5 | . . . . 1 . . 2 . 2 . . . . . . . Hotswap 1 | . . . . . . . . . 1 . . . . . . . Robot Detection 1 | . . . . . . . 1 . . . . . . . . . Alert ID Control 1 | . . . . . . . . . 1 . . . . . . . Program Shield 1 | . . . . . . . 1 . . . . . . . . . Robots Hacked 38 | . . . . . 11 1 6 1 6 3 3 . 1 1 4 1 Non-combat 12 | . . . . . 3 1 . 1 . . 1 . 1 1 4 . Combat 26 | . . . . . 8 . 6 . 6 3 2 . . . . 1 Robot Hacks Applied 39 | . . . . . 11 1 6 1 6 3 3 . 1 1 5 1 find_chute 1 | . . . . . . . . . . . . . . . 1 . deconstruct_machine 1 | . . . . . 1 . . . . . . . . . . . find_fabricator 1 | . . . . . . . . . . . . . . . 1 . drop_inventory 1 | . . . . . . . . . . . . . . . 1 . overload_power 1 | . . . . . 1 . . . . . . . . . . . amplify_resonance 3 | . . . . . . . . . . 1 . . . . 1 1 go_dormant 1 | . . . . . 1 . . . . . . . . . . . overwrite_iff 1 | . . . . . . . . . 1 . . . . . . . formatsys_low 6 | . . . . . 2 . . 1 . . 1 . 1 . 1 . formatsys_high 23 | . . . . . 6 1 6 . 5 2 2 . . 1 . . Relay Couplers Released 33 | . . . . 5 2 . 15 . 9 2 . . . . . . Machine Destruction 33 | . . . . 5 2 . 15 . 9 2 . . . . . . Attached 23 | . . . . . 5 . 8 . 8 2 . . . . . . Fabnet Peak Effective % . | . . . . . . . . . . . . . . . . . Robots Rewired 22 | . . . . . . . 6 . . . 16 . . . . . Allies Hacked 1 | . . . . 1 . . . . . . . . . . . . Hacks Repelled . | . . . . . . . . . . . . . . . . . Allies | -11 -10 -9 -8 -8 -8 -7 -7 -7 -7 -6 -6 -6 -6 -6 -5 -5 -------- Run | Yrd Mat Mat Mat Gar Mat Fac Gar Fac Gar Fac Ext Cet Arc Hub Fac Upp Total Allies 70 | . . . 1 1 8 1 12 1 8 2 27 5 1 1 1 1 Largest Group 20 | . . . 1 1 6 6 8 3 6 2 20 17 15 11 3 1 Highest-Rated Group 850 | . . . 10 39 91 85 117 59 213 82 681 850 850 660 256 167 Highest-Rated Ally 167 | . . . 10 39 39 21 32 31 62 41 159 136 136 96 96 167 Total Orders 3 | . . . . . 2 . . . . . . . . . 1 . AID 3 | . . . . . 2 . . . . . . . . . 1 . Ally Attacks 569 | . . . . 2 99 8 64 3 47 9 164 65 21 76 11 . Total Damage 14134 | . . . . 64 1613 173 1249 274 1027 339 4559 1404 894 2322 216 . Kills 87 | . . . . 1 17 1 5 2 10 2 24 8 4 12 1 . Allies Corrupted 4 | . . . . . . . . . 2 . . . . 2 . . Allies Melted 1 | . . . . . . . . . . . . . . 1 . . Intel | -11 -10 -9 -8 -8 -8 -7 -7 -7 -7 -6 -6 -6 -6 -6 -5 -5 ------- Run | Yrd Mat Mat Mat Gar Mat Fac Gar Fac Gar Fac Ext Cet Arc Hub Fac Upp Active Infowar (turns) 2261 | 187 529 . 54 258 . 552 434 . . . . . . . . 247 Terrain 263 | . 263 . . . . . . . . . . . . . . . Seismic 1947 | 187 266 . 54 258 . 552 434 . . . . . . . . 196 Decoding 51 | . . . . . . . . . . . . . . . . 51 Machine Analysis 5 | . . . . . . . 5 . . . . . . . . . Robot Analysis Total . | . . . . . . . . . . . . . . . . . Derelict Logs Recovered 1 | . . . . . . . . . . . . . . . . 1 Drone Launches . | . . . . . . . . . . . . . . . . . Drone Recoveries . | . . . . . . . . . . . . . . . . . Exploration | -11 -10 -9 -8 -8 -8 -7 -7 -7 -7 -6 -6 -6 -6 -6 -5 -5 ------------- Run | Yrd Mat Mat Mat Gar Mat Fac Gar Fac Gar Fac Ext Cet Arc Hub Fac Upp Turns Passed 18798 | 293 735 2756 2050 1014 1746 757 1569 232 1452 1301 2187 528 199 711 995 273 Spaces Moved 8514 | 180 612 1041 926 484 725 457 775 154 497 423 816 232 88 386 462 256 Core 154 | 2 . . 1 . . . . . . 2 . . . . . 149 Treads 2859 | 5 6 206 41 101 363 . 12 . 323 86 468 205 88 386 462 107 Legs 386 | . . . . . . . . . 51 335 . . . . . . Wheels 5115 | 173 606 835 884 383 362 457 763 154 123 . 348 27 . . . . Hover . | . . . . . . . . . . . . . . . . . Flight . | . . . . . . . . . . . . . . . . . Fastest Speed 50 | 50 95 110 130 130 130 130 145 145 130 240 160 160 160 160 160 50 Average Speed 167 | 95 95 160 149 156 206 143 153 145 214 263 218 165 160 160 162 95 Slowest Speed 1550 | 160 160 480 1500 231 231 160 312 145 750 1550 240 240 160 160 240 160 Overloaded Moves . | . . . . . . . . . . . . . . . . . Propulsion Burnouts . | . . . . . . . . . . . . . . . . . Robots Hopped . | . . . . . . . . . . . . . . . . . Potential Cave-ins . | . . . . . . . . . . . . . . . . . Cave-ins Triggered . | . . . . . . . . . . . . . . . . . Exploration Rate (%) 53 | 6 90 97 80 43 60 13 85 3 70 9 85 74 90 44 12 56 Regions Visited 16 Branch Regions 5 Pre-discovered Areas . | . . . . . . . . . . . . . . . . . Known Exits Taken 6 | . 1 1 1 . . 1 . 1 . . . . . 1 . . Unknown Exits Taken 7 | 1 . . . . 1 . . . . 1 1 1 1 . 1 . Scrap Searched 1 | . . . . . . . . . . . . . . . . 1 Spaces Dug 23 | . . . . 2 . 1 3 1 3 12 . 1 . . . . Terrain Destroyed 250 | . . . 8 2 . 1 15 1 3 20 11 1 . 167 21 . Melee 14 | . . . . 2 . 1 3 1 3 4 . . . . . . Projectile 41 | . . . . . . . . . . . 2 1 . 17 21 . AOE 195 | . . . 8 . . . 12 . . 16 9 . . 150 . . Terrain Rammed . | . . . . . . . . . . . . . . . . . Walls Destroyed . | . . . . . . . . . . . . . . . . . Machines Disabled . | . . . . . . . . . . . . . . . . . Actions | -11 -10 -9 -8 -8 -8 -7 -7 -7 -7 -6 -6 -6 -6 -6 -5 -5 --------- Run | Yrd Mat Mat Mat Gar Mat Fac Gar Fac Gar Fac Ext Cet Arc Hub Fac Upp Total 11520 | 250 695 1786 1329 618 917 550 1030 160 703 564 1128 344 131 433 608 274 Wait 1159 | 19 29 407 154 16 114 71 59 1 22 79 35 59 34 4 54 2 Move 8495 | 179 611 1040 925 482 724 456 773 153 495 422 815 231 87 385 461 256 Hop . | . . . . . . . . . . . . . . . . . Pick Up 144 | 11 3 35 23 15 3 4 10 . 9 5 8 7 . 4 7 . Fast Attach 49 | 7 . 6 5 1 2 1 2 . 7 6 3 4 . . 4 1 Attach 47 | . 1 7 11 3 1 1 2 . 11 5 1 . . 1 3 . Detach 2 | . . . . 1 . 1 . . . . . . . . . . Swap 262 | 2 8 49 33 18 19 5 25 3 37 12 22 8 2 3 13 3 Drop 173 | 5 7 43 33 15 5 5 10 1 4 4 16 15 . 3 7 . Fire 849 | 27 36 199 142 48 43 5 66 1 89 23 56 17 8 27 59 3 Melee 73 | . . . . 16 5 1 14 1 28 5 . 3 . . . . Ram 1 | . . . . . . . . . . . . . . . . 1 Kick 3 | . . . . . . . . . . 3 . . . . . . Crush 24 | . . . 3 2 1 . 3 . . . 1 . . 6 . 8 Escape Stasis 18 | . . . . . . . 16 . . . 2 . . . . . Rewire 221 | . . . . 1 . . 50 . 1 . 169 . . . . . Trap . | . . . . . . . . . . . . . . . . . Miscellaneous . | . . . . . . . . . . . . . . . . . Route ------- -11/Scrapyard -10/Materials (discovered 6 exits: *Mat x3 / *Min x2 / *Sub) -9/Materials (discovered 5 exits: *Mat x3 / *Min x2) -8/Materials (discovered 3 exits: *Fac x2 / Gar) -8/Garrison (discovered 3 exits: *Mat x3) -8/Materials -7/Factory (discovered 3 exits: *Fac / Sto / Gar) -7/Garrison (discovered 4 exits: *Fac x4) -7/Factory -7/Garrison (discovered 2 exits: *Fac x2) -6/Factory (discovered 2 exits: [*Low] / *Ext) -6/Extension (discovered 3 exits: *Fac x2 / *Cet) -6/Cetus (discovered 2 exits: *Fac / [*Arc]) -6/Archives (discovered 3 exits: *Fac / [*Hub x2]) -6/Hub_04(d) -5/Factory -5/Upper Caves History --------- Turn | Location | Event 2 | -11/Scrapyard | Met Revision 17 9 | -11/Scrapyard | Discovered new exit (range 15) 294 | -11/Scrapyard | Entered Materials 314 | -10/Materials | Build established: Mutant 328 | -10/Materials | Discovered new exit (range 15) 507 | -10/Materials | Discovered new exit (range 16) 553 | -10/Materials | Identified exit to Materials 659 | -10/Materials | Identified exit to Mines 752 | -10/Materials | Loaded intel: 8 terminal locations 899 | -10/Materials | Learned Storage emergency access door positions 946 | -10/Materials | Identified exit to Subcaves 946 | -10/Materials | Learned location of 1 exit from Materials 1029 | -10/Materials | Entered another Materials area 1029 | -9/Materials | Evolved 2 slots: Propulsion x2 1030 | -9/Materials | Identified exit to Mines 1031 | -9/Materials | Identified exit to Materials 1321 | -9/Materials | Build established: Scavenger-Mutant 2152 | -9/Materials | Destroyed 8 combat bots 2160 | -9/Materials | Core integrity fell below 50% 2214 | -9/Materials | Discovered exit to Materials (range 5) 2925 | -9/Materials | Discovered exit to Materials (range 14) 2938 | -9/Materials | Central database locked down 3021 | -9/Materials | Build established: Mutant 3418 | -9/Materials | Repaired Lgt. Armor Plating 3445 | -9/Materials | Repaired Lgt. Treads 3556 | -9/Materials | Learned 4 Recycling zone layouts 3654 | -9/Materials | Learned Storage terminal intel 3686 | -9/Materials | Loaded intel: 14 trap records 3687 | -9/Materials | Build established: Scavenger-Mutant 3785 | -9/Materials | Entered another Materials area 3785 | -8/Materials | Evolved 2 slots: Utility x2 3867 | -8/Materials | Repaired Lgt. Armor Plating 4540 | -8/Materials | Core integrity fell below 50% 4558 | -8/Materials | Lost 9 parts (1p4n2u2w) 5046 | -8/Materials | Discovered new exit (range 15) 5565 | -8/Materials | Discovered new exit (range 8) 5834 | -8/Materials | Identified exit to Garrison 5835 | -8/Materials | Entered Garrison 5836 | -8/Garrison | Identified exit to Materials 5917 | -8/Garrison | Core integrity fell below 20% 5973 | -8/Garrison | Installed Relay Interface Framework 6071 | -8/Garrison | Triggered checkpoint 6110 | -8/Garrison | Garrison Relay disabled 6311 | -8/Garrison | Triggered checkpoint 6483 | -8/Garrison | Destroyed 9 combat bots 6618 | -8/Garrison | Rescued a captive Derelict 6849 | -8/Garrison | Entered Materials 6849 | -8/Materials | Accompanied by 1 ally 6917 | -8/Materials | Build established: Bothacker-Mutant 8421 | -8/Materials | Discovered new exit (range 15) 8495 | -8/Materials | Repaired Wheel+ 8595 | -8/Materials | Entered Factory 8595 | -7/Factory | Accompanied by 5 allies 8595 | -7/Factory | Evolved 2 slots: Utility x2 8596 | -7/Factory | Identified exit to Storage 9194 | -7/Factory | Discovered new exit (range 14) 9261 | -7/Factory | Identified exit to Garrison 9352 | -7/Factory | Entered Garrison 9352 | -7/Garrison | Accompanied by 6 allies 9368 | -7/Garrison | Garrison Relay disabled 9432 | -7/Garrison | Triggered checkpoint 9514 | -7/Garrison | Triggered checkpoint 9547 | -7/Garrison | Lost 8 allies 9586 | -7/Garrison | Expanded RIF knowledge: Robot Detection 9630 | -7/Garrison | Garrison Relay disabled 9829 | -7/Garrison | Triggered checkpoint 9890 | -7/Garrison | Lost 4 allies 10094 | -7/Garrison | Triggered checkpoint 10116 | -7/Garrison | Garrison Relay disabled 10260 | -7/Garrison | Discovered new exit (range 13) 10301 | -7/Garrison | Discovered new exit (range 7) 10519 | -7/Garrison | Discovered new exit (range 33) 10519 | -7/Garrison | Discovered new exit (range 34) 10519 | -7/Garrison | Discovered new exit (range 57) 10519 | -7/Garrison | Discovered new exit (range 65) 10570 | -7/Garrison | Lost 3 allies 10834 | -7/Garrison | Expanded RIF knowledge: Program Shield 10848 | -7/Garrison | Triggered checkpoint 10871 | -7/Garrison | Garrison Relay disabled 10921 | -7/Garrison | Entered Factory 10921 | -7/Factory | Accompanied by 2 allies 11152 | -7/Factory | Identified exit to Garrison 11153 | -7/Factory | Entered Garrison 11153 | -7/Garrison | Accompanied by 2 allies 11195 | -7/Garrison | Triggered checkpoint 11230 | -7/Garrison | Garrison Relay disabled 11324 | -7/Garrison | Found embedded Infiltrators 11359 | -7/Garrison | Triggered checkpoint 11459 | -7/Garrison | Lost 5 allies 11470 | -7/Garrison | System corruption reached 10% 11512 | -7/Garrison | Lost 11 parts (2p4n4u1w) 11525 | -7/Garrison | Triggered checkpoint 11600 | -7/Garrison | Discovered new exit (range 12) 11687 | -7/Garrison | Triggered checkpoint 11807 | -7/Garrison | Expanded RIF knowledge: Alert ID Control 11892 | -7/Garrison | Garrison Relay disabled 12105 | -7/Garrison | Triggered checkpoint 12205 | -7/Garrison | Build established: Botlord-Mutant 12253 | -7/Garrison | Expanded RIF knowledge: Hotswap 12312 | -7/Garrison | Discovered new exit (range 8) 12399 | -7/Garrison | Triggered checkpoint 12409 | -7/Garrison | Core integrity fell below 50% 12456 | -7/Garrison | Lost 4 parts (3n1u) 12517 | -7/Garrison | Garrison Relay disabled 12605 | -7/Garrison | Entered Factory 12605 | -6/Factory | Accompanied by 1 ally 12605 | -6/Factory | Evolved 2 slots: Utility x2 13405 | -6/Factory | Discovered new exit (range 11) 13491 | -6/Factory | Garrison activated, responded to threat 13678 | -6/Factory | Lost 10 parts (1p4n2u3w) 13870 | -6/Factory | Discovered new exit (range 15) 13906 | -6/Factory | Entered Extension 13906 | -6/Extension | Accompanied by 2 allies 14049 | -6/Extension | Rescued A7 14068 | -6/Extension | Rescued a captive Derelict 14125 | -6/Extension | Identified exit to Factory 14149 | -6/Extension | Rescued a captive Derelict 14151 | -6/Extension | Rescued a captive Derelict 14957 | -6/Extension | Spotted B-75 Beast 14969 | -6/Extension | Allies destroyed B-75 Beast 15009 | -6/Extension | Spotted B-75 Beast 15021 | -6/Extension | Allies destroyed B-75 Beast 15179 | -6/Extension | Rescued a captive Derelict 15180 | -6/Extension | Rescued a captive Derelict 15246 | -6/Extension | Lost 3 allies 15468 | -6/Extension | Lost 3 allies 15525 | -6/Extension | Rescued a captive Derelict 15526 | -6/Extension | Rescued a captive Derelict 15806 | -6/Extension | Disrupted transfer network 16000 | -6/Extension | Discovered new exit (range 6) 16093 | -6/Extension | Entered Cetus 16093 | -6/Cetus | Accompanied by 17 allies (A7) 16098 | -6/Cetus | Acquired a Cetus Manufacturing Module code from A7 16119 | -6/Cetus | Spotted Cetus Guard 16119 | -6/Cetus | Spotted Cetus Guard 16123 | -6/Cetus | Allies destroyed Cetus Guard 16124 | -6/Cetus | Spotted Cetus Guard 16128 | -6/Cetus | Spotted Cetus Guard 16131 | -6/Cetus | Allies destroyed Cetus Guard 16137 | -6/Cetus | Destroyed Cetus Guard 16147 | -6/Cetus | Allies destroyed Cetus Guard 16156 | -6/Cetus | Lost 3 allies 16322 | -6/Cetus | Escorted A7 to Cetus Mainframe 16371 | -6/Cetus | Found a strange terminal 16384 | -6/Cetus | Started Cetus Manufacturing Module 16405 | -6/Cetus | Discovered new exit (range 15) 16409 | -6/Cetus | Manufactured an Enhanced Grunt 16433 | -6/Cetus | Spotted Cetus Guard 16433 | -6/Cetus | Spotted Cetus Guard 16434 | -6/Cetus | Manufactured an Enhanced Grunt 16437 | -6/Cetus | Spotted Cetus Guard 16437 | -6/Cetus | Spotted Cetus Guard 16444 | -6/Cetus | Core integrity fell below 50% 16446 | -6/Cetus | Allies destroyed Cetus Guard 16453 | -6/Cetus | Allies destroyed Cetus Guard 16459 | -6/Cetus | Manufactured an Enhanced Grunt 16460 | -6/Cetus | Allies destroyed Cetus Guard 16464 | -6/Cetus | Destroyed Cetus Guard 16472 | -6/Cetus | Discovered exit to Factory (range 16) 16480 | -6/Cetus | Lost 4 allies 16482 | -6/Cetus | Met Revision 17 16484 | -6/Cetus | Manufactured an Enhanced Grunt 16509 | -6/Cetus | Manufactured an Enhanced Grunt 16621 | -6/Cetus | Entered Archives 16621 | -6/Archives | Accompanied by 15 allies (A7) 16626 | -6/Archives | Received a hacking code to weaken MAIN.C 16683 | -6/Archives | Lost 4 allies 16691 | -6/Archives | Discovered exit to Factory (range 14) 16746 | -6/Archives | Discovered new exit (range 14) 16768 | -6/Archives | Discovered new exit (range 16) 16820 | -6/Archives | Entered Hub_04(d) 16820 | -6/Hub_04(d) | Accompanied by 11 allies 17263 | -6/Hub_04(d) | Discovered exit to Factory (range 13) 17445 | -6/Hub_04(d) | Network Hub disabled 17454 | -6/Hub_04(d) | Spotted Lightning 17456 | -6/Hub_04(d) | Spotted Lightning 17456 | -6/Hub_04(d) | Spotted Lightning 17457 | -6/Hub_04(d) | System corruption reached 10% 17473 | -6/Hub_04(d) | Allies destroyed Lightning 17491 | -6/Hub_04(d) | Allies destroyed Lightning 17494 | -6/Hub_04(d) | Allies destroyed Lightning 17526 | -6/Hub_04(d) | Lost 6 allies 17531 | -6/Hub_04(d) | Entered Factory 17531 | -5/Factory | Accompanied by 3 allies 17531 | -5/Factory | Evolved 2 slots: Utility x2 17831 | -5/Factory | First assault squad dispatched 18513 | -5/Factory | Discovered new exit (range 8) 18526 | -5/Factory | Entered Upper Caves 18697 | -5/Upper Caves | Attracted the attention of an 0b10 checkpoint 18697 | -5/Upper Caves | Attracted the attention of an 0b10 base 18722 | -5/Upper Caves | Released all parts (12) 18774 | -5/Upper Caves | Core integrity fell below 50% 18784 | -5/Upper Caves | Core integrity fell below 20% 18793 | -5/Upper Caves | Learned Factory stockpile data 18795 | -5/Upper Caves | Spotted B-75 Beast 18799 | -5/Upper Caves | Destroyed by B-75 Beast with Magnetic Acceleration Cannon Last Messages --------------- 18722_ Released Seismic Detector. 18745_ Searching scrap... 18745_ Found Transmission Jammer. 18745_ Found Imp. Trap Scanner. 18745_ Found 0b10 Decoder Chip [Generic]. 18745_ Found Reaction Control System. 18745_ Found 34 Matter. 18746_ Acquired 34 matter. 18748_ Acquired 0b10 Decoder Chip [Generic]. 18774_ B3 :Y,XOD2%TSJLGEPJMKO 18777_ Slammed into S-27 Virus. A strange signal echoes through the caves. 18782_ Acquired 42 matter. 18791_ S-27 Virus suffers critical hit (Destroy). 18791_ S-27 Virus destroyed. 18793_ Acquired derelict log, extracted data. Data stored: Factory stockpile data. 18799_ 0b10 Decoder Chip [Generic] destroyed. 18799_ Critical hit (Blast). Map ----- +----------------------------------------------------+ | ????????????????????###?###### # [[*!*!! | | ?????????????????????????????## ### [[!!| | | ??????????????????????????????### #?## ]!![| ## | | ???????????????????????????????? #??# =! #? | | ???????###????????????????##???# ##?## #? | | ?# ??### ????????????????# ???## ##??# ## | | ## ## ????????????????# ????###??# ### | | # ???????????????? ????##???# ###?###" | | ???????????????? ##?# #?# #?????? | | ????????????????? ## ## ??????? | | ## ##??????????????? # ??????? | | ## ##?????????????? #?## ## ??????? | | ## #############??# ##?###?## ?????? | | #?## ##??#???# ?????? | | # ### ## #????# ?????? | | # ## #???????????? | | ## % #???????????? | | # ## ####### ###?????????????? | | # ### # #?###?# ##???????????????? | | # #?### ## ### ##### #????????????????? | | ###### ### ## ##s ###??????????????? | | ! #?# #?# ;#??????????????? | | * ##?# #?## s #??????????????? | | ###### ##??# #??## s ##?????????????? | | ###????#####???# #???# #?????????????? | | ###??????????????# #???#@% #????????????? | | ?????????????????# #???# ????????? | | ????????????????? ??? #; #????????? | | ?????????????????# ?? ##? BB #????????? | | ?????????????????## ? ##?? B #???????? | | ???????????????????# #??? ???????? | | ????????????????????# ## #??? ???????? | | ????????????????????# #?# #??? ????????# | | ???????????????????? #?? ??? ???????### | | ??????????????????? ??? ??? ???????## | | ??????????????????# ???? ???? ? ??????????# | | ?????????????????? ???? ??????????????????# | | ??????????????????????? ??????????????????# | | ???????????????????????? ?????????????????# | | ???????????????????????? ?????????????????## | | ????????????????????????# ???????????????????# ? | | ?????????????????????????????????????????????????? | | ?????????????????????????????????????????????????? | | ?????????????????????????????????????????????????? | | ?????????????????????????????????????????????????? | | ?????????????????????????????????????????????????? | | ?????????????????????????????????????????????????? | | ?????????????????????????????????????????????????? | | ?????????????????????????????????????????????????? | | ?????????????????????????????????????????????????? | +----------------------------------------------------+ Best States ------------- Heat Dissipation 71 Energy Generation 25 Energy Capacity 350 Matter Stores 300 Matter Capacity 300 Sight Range 16 Terrain Scan Range 16 Terrain Scan Density 10 Armor Coverage 1650 Evasion (%) 50 Core Analysis 6 Recoil Reduction 4 Offensive Hacking 10 Relay Coupler Types 5 Relay Coupler Value 148 Item Schematics ----------------- None Robot Schematics ------------------ None Fabricated ------------ Nothing Repaired ---------- Lgt. Armor Plating | 27% | -9/Materials Lgt. Treads | 83% | -9/Materials Lgt. Armor Plating | 57% | -8/Materials Wheel | 52% | -8/Materials Studied --------- Wheel | -9/Materials | Hacked Alien Tech Used ----------------- None Achievements -------------- Generalissimo Versatile Challenges ------------ None Game ------ Seed BottomlessEnhancedStabilizer Manual? 0 Play Time 01:57:10 Cumulative 252.8 hours Start 2025.11.09 @ 00:46:39 End 2025.11.09 @ 02:42:57 Sessions 1 Manual Loads 0 Difficulty Rogue Special Mode None Game No. 384 Rogue 382 Adventurer 0 Explorer 2 Win Type - Total 5 Types 3/0/1/1/0/0/0/0/0/0 Lore% 54 Gallery% 63 Achievement% 45 Wizard Run 0 Options --------- Layout 2 ASCII 0 Keyboard 1 Movement Arrows Keybinds 0 Fullscreen 1 Font 28/SmallcapsGlow Map View 50x49 Zoom Use 1% Tactical HUD 1 Map Filters NONE Filters NONE Steam 1 RUN: 779f10a6-78f1-4b39-9e7d-7bcd25591153